[Event "Polish Youth 1st League 2022"]
[Site "Lublin"]
[Date "2022.06.27"]
[Round "3.11"]
[White "Barwinska, Ewa"]
[Black "Uliasz, Katarzyna"]
[Result "1-0"]
[ECO "C97"]
[WhiteElo "1825"]
[BlackElo "1526"]
[Annotator "NA RC"]
[PlyCount "239"]
[EventDate "2022.06.24"]
[EventType "team-tourn"]
[EventCountry "POL"]
[SourceTitle "playchess.com"]
[Source "ChessBase"]
[SourceQuality "1"]
[TimeControl "40/5400+30:1800+30"]

1. e4 {[%emt 0:00:08]} e5 {[%emt 0:00:05]} 2. Nf3 {[%emt 0:00:23]} Nc6 {[%emt 0:00:05]} 3. Bb5 {[%emt 0:00:20]} a6 {[%emt 0:00:05]} 4. Ba4 {[%emt 0:00:12]} Nf6 {[%emt 0:00:06]} 5. O-O {[%emt 0:00:37]} Be7 {[%emt 0:00:05]} 6. Re1 {[%emt 0:01:03]} b5 {[%emt 0:00:09]} 7. Bb3 {[%emt 0:00:08]} O-O {[%emt 0:00:07]} 8. h3 {[%emt 0:00:06]} d6 {[%emt 0:01:08]} 9. c3 {[%emt 0:00:22]} Na5 {[%emt 0:02:33]} 10. Bc2 {[%emt 0:00:13]} c5 {[%emt 0:00:04]} 11. d4 {[%emt 0:00:13]} Qc7 {[%emt 0:00:21]} 12. d5 {[%emt 0:00:38]} Re8 {[%emt 0:04:39]} 13. b3 {[%emt 0:04:12]} Bf8 {[%emt 0:05:58]} 14. Bg5 {[%emt 0:03:32]} Qe7 {[%emt 0:07:59]} 15. Nbd2 {[%emt 0:03:25]} h6 {[%emt 0:00:53]} 16. Be3 {[%emt 0:00:52]} Bd7 {[%emt 0:04:36]} 17. Nf1 {[%emt 0:02:25]} g6 {[%emt 0:01:48]} 18. Qd2 {[%emt 0:02:48]} Kh7 {[%emt 0:00:08]} 19. Ng3 {[%emt 0:13:25]} Bg7 {[%emt 0:01:56]} 20. Nh2 {[%emt 0:05:26]} Rab8 {[%emt 0:11:18]} 21. f4 {[%emt 0:14:39]} Ng8 {[%emt 0:00:44]} 22. f5 {[%emt 0:02:01]} Qh4 {[%emt 0:06:25]} 23. Qf2 {[%emt 0:04:50]} Rec8 {[%emt 0:12:58]} 24. Rf1 {[%emt 0:06:05]} Be8 {[%emt 0:02:39]} 25. Ng4 {[%emt 0:04:32]} Qd8 {[%emt 0:07:27]} 26. Qd2 {[%emt 0:11:53]} g5 {[%emt 0:01:28]} 27. f6 {[%emt 0:08:05]} Nxf6 {[%emt 0:06:28]} 28. Bd1 {[%emt 0:05:22]} Ng8 {[%emt 0:00:27]} 29. Nf5 {[%emt 0:01:13]} f6 {[%emt 0:00:27]} 30. h4 {[%emt 0:00:24]} Bg6 {[%emt 0:01:27]} 31. hxg5 {[%emt 0:00:34]} fxg5 {[%emt 0:00:23]} 32. Rf3 {[%emt 0:02:00]} Nf6 {[%emt 0:02:51]} 33. Nxf6+ {[%emt 0:01:46]} Bxf6 {[%emt 0:00:34]} 34. Qf2 {[%emt 0:01:49]} Bg7 {[%emt 0:00:33]} 35. Rh3 {[%emt 0:00:45]} Qf6 {[%emt 0:01:39]} 36. Rf3 {[%emt 0:01:03]} Bxf5 {[%emt 0:02:59]} 37. Rxf5 {[%emt 0:00:03]} Qg6 {[%emt 0:00:20]} 38. Bg4 {[%emt 0:00:07]} Kh8 {[%emt 0:01:04]} 39. Rf1 {[%emt 0:01:19]} Rf8 {[%emt 0:00:36]} 40. Qg3 {[%emt 0:00:00]} Rxf5 {[%emt 0:00:00]} 41. Bxf5 {[%emt 0:01:22]} Qh5 {[%emt 0:06:47]} 42. Bg4 {[%emt 0:04:38]} Qg6 {[%emt 0:01:42]} 43. Qh3 {[%emt 0:02:48]} Bf6 $18 {[%emt 0:03:22]} (43... Rf8 44. Rxf8+ Bxf8) 44. Bf5 {[%emt 0:00:44]} Qg7 {[%emt 0:00:53]} 45. Kf2 $2 {[%emt 0:03:00]} (45. Bc8) 45... g4 $2 {[%emt 0:07:52]} (45... Nb7 46. Rh1 Rf8 47. Qxh6+ Qxh6 48. Rxh6+ Kg8) 46. Qxh6+ {[%emt 0:01:04]} Qxh6 {[%emt 0:00:28]} 47. Bxh6 {[%emt 0:00:05]} c4 {[%emt 0:02:34]} 48. b4 {[%emt 0:00:09]} Nb7 {[%emt 0:00:21]} 49. Rh1 {[%emt 0:02:31]} Bg7 {[%emt 0:03:43]} 50. Bg5+ {[%emt 0:01:03]} Kg8 {[%emt 0:00:09]} 51. Bxg4 {[%emt 0:00:58]} a5 {[%emt 0:00:10]} 52. Be6+ {[%emt 0:00:09]} Kf8 {[%emt 0:00:08]} 53. a3 {[%emt 0:01:47]} axb4 {[%emt 0:00:11]} 54. axb4 {[%emt 0:00:04]} Nd8 {[%emt 0:03:14]} 55. Bf5 {[%emt 0:03:08]} Nf7 {[%emt 0:00:24]} 56. Be3 {[%emt 0:01:20]} Ra8 {[%emt 0:00:50]} 57. Bd7 {[%emt 0:00:37]} Ra2+ {[%emt 0:01:12]} 58. Kf3 {[%emt 0:01:29]} Ra3 {[%emt 0:00:39]} 59. Rc1 {[%emt 0:00:22]} Bf6 {[%emt 0:01:07]} 60. Kg4 {[%emt 0:01:21]} Ra2 {[%emt 0:00:13]} 61. Bxb5 {[%emt 0:05:41]} Re2 {[%emt 0:02:32]} 62. Ba7 {[%emt 0:02:46]} Rxe4+ $2 {[%emt 0:00:28]} (62... Rxg2+ $14 63. Kf3 Rh2) 63. Kg3 {[%emt 0:00:41]} Bh4+ {[%emt 0:00:30]} 64. Kh2 {[%emt 0:00:11]} Bg5 {[%emt 0:01:44] [#]} (64... Ke7 $142) 65. Rc2 $1 {[%emt 0:01:45]} Nh6 {[%emt 0:01:53]} 66. Bd7 {[%emt 0:00:13]} Ke7 {[%emt 0:02:27]} 67. Be6 {[%emt 0:00:14]} Re1 {[%emt 0:01:30]} 68. Bf2 {[%emt 0:02:12]} Rb1 {[%emt 0:00:40]} 69. Re2 {[%emt 0:00:43]} Rb3 {[%emt 0:01:04]} 70. Be3 {[%emt 0:00:31]} Bxe3 {[%emt 0:01:37]} (70... Kf6 $11) 71. Rxe3 {[%emt 0:00:04]} Nf7 {[%emt 0:00:12]} 72. Bc8 {[%emt 0:02:45]} Nh6 {[%emt 0:00:34]} 73. Kh3 {[%emt 0:00:26]} Rb1 {[%emt 0:00:19]} 74. Re4 {[%emt 0:00:38]} Rd1 {[%emt 0:00:35]} 75. Rxc4 {[%emt 0:00:20]} Rxd5 {[%emt 0:00:13]} 76. Bb7 {[%emt 0:01:37]} Rd3+ {[%emt 0:00:17]} 77. Kh2 {[%emt 0:00:29]} Ng4+ {[%emt 0:00:12]} 78. Rxg4 {[%emt 0:00:04]} Rxc3 {[%emt 0:00:05]} 79. Bd5 {[%emt 0:00:11]} Rc2 {[%emt 0:00:33]} 80. Rg3 {[%emt 0:01:03]} Rd2 {[%emt 0:00:33]} 81. Bc6 {[%emt 0:00:39]} Rb2 {[%emt 0:00:19]} 82. b5 {[%emt 0:00:04]} d5 {[%emt 0:00:28]} 83. Rg7+ {[%emt 0:00:43]} Kf6 {[%emt 0:00:16]} 84. Rd7 {[%emt 0:00:17]} d4 {[%emt 0:00:12]} 85. Kg3 {[%emt 0:00:23]} Kf5 {[%emt 0:00:28]} 86. Kf3 {[%emt 0:00:42]} Rb3+ {[%emt 0:00:05]} 87. Ke2 {[%emt 0:00:07]} Kf4 {[%emt 0:01:35]} 88. Rf7+ {[%emt 0:00:16]} Kg5 {[%emt 0:00:29]} 89. Kd2 {[%emt 0:00:59]} Kg6 {[%emt 0:01:20]} 90. Rf8 {[%emt 0:00:13]} Kg5 {[%emt 0:01:12]} 91. Kc2 {[%emt 0:00:38]} Rc3+ {[%emt 0:01:36]} 92. Kb2 {[%emt 0:00:14]} Rc5 {[%emt 0:00:36]} 93. Rf3 {[%emt 0:00:51]} e4 {[%emt 0:01:14]} 94. Bxe4 {[%emt 0:00:15]} Rxb5+ {[%emt 0:00:02]} 95. Kc2 {[%emt 0:00:14]} Kg4 {[%emt 0:01:01]} 96. Kd3 {[%emt 0:00:44]} Rb4 {[%emt 0:00:30]} 97. Rf8 {[%emt 0:00:17]} Kg3 {[%emt 0:00:46]} 98. Rd8 {[%emt 0:00:10]} Rb1 {[%emt 0:00:34]} 99. Rxd4 {[%emt 0:00:16]} Ra1 {[%emt 0:00:23]} 100. Ke2 {[%emt 0:00:26]} Ra2+ {[%emt 0:00:19]} 101. Rd2 {[%emt 0:00:04]} Ra7 {[%emt 0:00:10]} 102. Rd3+ {[%emt 0:00:08]} Kf4 {[%emt 0:00:14]} 103. Bf3 {[%emt 0:00:23]} Ra2+ {[%emt 0:00:14]} 104. Rd2 {[%emt 0:00:05]} Ra7 {[%emt 0:00:09]} 105. Kf2 {[%emt 0:00:03]} Ra3 {[%emt 0:00:25]} 106. g3+ {[%emt 0:00:16]} Kg5 {[%emt 0:00:08]} 107. Rd5+ {[%emt 0:00:04]} Kg6 {[%emt 0:00:17]} 108. g4 {[%emt 0:00:03]} Ra4 {[%emt 0:00:18]} 109. Kg3 {[%emt 0:00:04]} Ra3 {[%emt 0:00:05]} 110. Kf4 {[%emt 0:00:06]} Ra4+ {[%emt 0:00:07]} 111. Be4+ {[%emt 0:00:02]} Kg7 {[%emt 0:00:15]} 112. Rd6 {[%emt 0:00:05]} Ra1 {[%emt 0:00:10]} 113. Kg5 {[%emt 0:00:14]} Rg1 {[%emt 0:00:23]} 114. Bf5 {[%emt 0:00:19]} Rh1 {[%emt 0:00:16]} 115. Rd7+ {[%emt 0:00:05]} Kf8 {[%emt 0:00:18]} 116. Kg6 {[%emt 0:00:11]} Ra1 {[%emt 0:00:32]} 117. Kf6 {[%emt 0:00:38]} Ra8 {[%emt 0:01:03]} 118. g5 {[%emt 0:00:24]} Kg8 {[%emt 0:00:07]} 119. g6 {[%emt 0:00:30]} Kh8 {[%emt 0:00:43]} 120. Rh7+ {[%emt 0:00:06]} 1-0

[Event "Polish Youth 1st League 2022"]
[Site "Lublin"]
[Date "2022.06.27"]
[Round "3.12"]
[White "Tokarz, Gabriela"]
[Black "Matuszewska, Kinga"]
[Result "1-0"]
[ECO "A84"]
[WhiteElo "1469"]
[BlackElo "1085"]
[Annotator "NA RC"]
[PlyCount "95"]
[EventDate "2022.06.24"]
[EventType "team-tourn"]
[EventCountry "POL"]
[SourceTitle "playchess.com"]
[Source "ChessBase"]
[SourceQuality "1"]
[TimeControl "40/5400+30:1800+30"]

1. d4 {[%emt 0:00:02]} f5 {[%emt 0:00:05]} 2. c4 {[%emt 0:00:06]} e6 {[%emt 0:00:10]} 3. Nc3 {[%emt 0:00:10]} Nf6 {[%emt 0:00:29]} 4. Nf3 {[%emt 0:00:12]} d5 {[%emt 0:00:18]} 5. Bg5 {[%emt 0:00:28]} Be7 {[%emt 0:00:37]} 6. e3 {[%emt 0:00:12]} c6 {[%emt 0:00:15]} 7. Bxf6 {[%emt 0:00:32]} Bxf6 {[%emt 0:00:29]} 8. Bd3 {[%emt 0:00:18]} O-O {[%emt 0:00:43]} 9. O-O {[%emt 0:00:27]} Be7 {[%emt 0:04:28]} 10. Ne5 {[%emt 0:00:44]} Nd7 {[%emt 0:02:19]} 11. f4 {[%emt 0:00:31]} a6 {[%emt 0:08:06]} 12. Rc1 {[%emt 0:05:42]} g5 {[%emt 0:06:51]} 13. g3 {[%emt 0:09:26]} g4 {[%emt 0:07:15]} 14. Qb3 {[%emt 0:03:26]} Nxe5 {[%emt 0:06:36]} 15. fxe5 {[%emt 0:00:54]} b5 {[%emt 0:10:17]} 16. cxd5 {[%emt 0:00:24]} exd5 {[%emt 0:01:33]} 17. Ne2 {[%emt 0:02:05]} Qe8 {[%emt 0:04:40]} 18. Nf4 {[%emt 0:02:53]} h5 {[%emt 0:02:25]} 19. Qc2 {[%emt 0:01:15]} Bg5 {[%emt 0:09:10]} 20. Qxc6 {[%emt 0:01:09]} Qxc6 {[%emt 0:01:58]} 21. Rxc6 {[%emt 0:00:11]} Bxf4 {[%emt 0:01:53]} 22. Rxf4 {[%emt 0:00:11]} Ra7 {[%emt 0:01:43]} 23. Kg2 {[%emt 0:04:24]} Kg7 {[%emt 0:01:14]} 24. Kf2 {[%emt 0:00:57]} Kg8 {[%emt 0:07:37]} 25. Ke2 {[%emt 0:00:09]} Bd7 {[%emt 0:04:17]} 26. Rd6 {[%emt 0:00:30]} Kg7 {[%emt 0:00:44]} 27. Kd2 {[%emt 0:00:24]} Bc8 {[%emt 0:02:09]} 28. Rxd5 {[%emt 0:01:19]} Be6 {[%emt 0:00:29]} 29. Rd6 {[%emt 0:00:42]} Bxa2 {[%emt 0:00:39]} 30. Bxf5 {[%emt 0:01:25]} Bc4 {[%emt 0:01:15]} 31. Rg6+ {[%emt 0:00:26]} Kh8 {[%emt 0:01:04]} 32. Rh6+ {[%emt 0:00:06]} Kg8 {[%emt 0:01:28]} 33. Rxh5 {[%emt 0:01:00]} Rg7 {[%emt 0:03:17]} 34. Bh7+ {[%emt 0:00:59]} Rxh7 {[%emt 0:01:24]} 35. Rxf8+ {[%emt 0:00:05]} Kxf8 {[%emt 0:01:33]} 36. Rxh7 {[%emt 0:00:06]} b4 {[%emt 0:00:29]} 37. Ra7 {[%emt 0:00:13]} Ke8 {[%emt 0:00:45]} 38. e4 {[%emt 0:00:06]} Kd8 {[%emt 0:00:39]} 39. d5 {[%emt 0:00:06]} Bb5 {[%emt 0:00:26]} 40. d6 {[%emt 0:00:00]} Bc4 {[%emt 0:00:00]} 41. Ke3 {[%emt 0:00:40]} b3 {[%emt 0:06:15]} 42. Kd4 {[%emt 0:00:09]} Bb5 {[%emt 0:01:51]} 43. e6 {[%emt 0:00:48]} Kc8 {[%emt 0:00:51]} 44. Kc5 {[%emt 0:00:16]} Kb8 {[%emt 0:00:36]} 45. Kb6 {[%emt 0:00:12]} Bc6 {[%emt 0:00:23]} 46. d7 {[%emt 0:00:13]} Bxd7 {[%emt 0:00:54]} 47. exd7 {[%emt 0:00:02]} a5 {[%emt 0:00:11]} 48. d8=R# {[%emt 0:00:08]} 1-0

[Event "Polish Youth 1st League 2022"]
[Site "Lublin"]
[Date "2022.06.27"]
[Round "3.13"]
[White "Szlosarczyk, Hubert"]
[Black "Luczak, Filip"]
[Result "0-1"]
[ECO "A42"]
[WhiteElo "1650"]
[BlackElo "2311"]
[Annotator "TA"]
[PlyCount "94"]
[EventDate "2022.06.24"]
[EventType "team-tourn"]
[EventCountry "POL"]
[SourceTitle "playchess.com"]
[Source "ChessBase"]
[SourceQuality "1"]
[TimeControl "40/5400+30:1800+30"]

{[%evp 9,94,43,65,2,20,-4,29,0,0,-7,-6,-14,34,20,33,17,73,28,33,48,43,-62,-67,-105,-114,-114,-105,-283,-270,-278,-278,-277,-268,-256,-188,-182,-166,-175,-149,-163,-164,-172,-104,-244,-194,-201,-201,-206,-214,-234,-207,-208,-233,-300,-304,-299,-212,-192,-209,-200,-200,-188,-171,-167,-169,-358,-364,-357,-327,-393,-365,-635,-580,-563,-416,-393,-389,-1033,-956,-917,-874,-29984,-29985,-29985,-29986,-29983,-29984]} 1. d4 {[%emt 0:00:36]} g6 {[%emt 0:00:06]} 2. c4 {[%emt 0:01:16]} Bg7 {[%emt 0:00:21]} 3. Nc3 {[%emt 0:00:56]} d6 {[%emt 0:00:10]} 4. e4 {[%emt 0:01:14]} e5 {[%emt 0:00:07]} 5. d5 {[%emt 0:01:13]} f5 {[%emt 0:00:05]} 6. Qc2 {[%emt 0:03:08] A42: Modern Defence: Averbakh Variation.} (6. exf5 $14 Bxf5 7. Bd3) 6... Nf6 {[%emt 0:01:28]} 7. Bd3 {[%emt 0:02:16][%cal Re4f5] [#]} Qd7 $146 {[%emt 0:17:18]} ({Predecessor:} 7... fxe4 8. Nxe4 Nxe4 9. Bxe4 Nd7 10. Ne2 Nc5 11. Nc3 O-O 12. O-O Nxe4 13. Nxe4 Bf5 {1-0 (40) Heinemann,J (2290)-Warchol,K (2043) Chess.com INT 2022}) 8. f3 {[%emt 0:06:15] White has an edge.} Na6 {[%emt 0:01:54]} 9. Qe2 {[%emt 0:04:00]} O-O {[%emt 0:03:46]} 10. Be3 {[%emt 0:05:46]} Nc5 {[%emt 0:03:23]} (10... c6 $11) 11. Bxc5 $14 {[%emt 0:04:04]} dxc5 {[%emt 0:00:03]} 12. O-O-O {[%emt 0:02:36]} Ne8 {[%emt 0:04:54]} (12... fxe4 $11 {keeps the balance.} 13. Bxe4 Qd6) 13. Nh3 {[%emt 0:03:49]} Nd6 {[%emt 0:01:44]} 14. Nf2 {[%emt 0:03:58]} a6 {[%emt 0:01:57]} 15. Qc2 {[%emt 0:07:02]} (15. h4 $14) 15... b5 {[%emt 0:04:16]} 16. Nb1 {[%emt 0:02:49]} Bh6+ {[%emt 0:01:33]} 17. Nd2 {[%emt 0:00:27]} Be3 {[%emt 0:03:23]} 18. Nh3 $2 {[%emt 0:04:45]} (18. Rdf1 $17 {was called for.}) 18... bxc4 $19 {[%emt 0:07:45]} 19. Bxc4 {[%emt 0:00:22]} fxe4 {[%emt 0:00:46]} 20. fxe4 {[%emt 0:00:20]} Qg4 {[%emt 0:02:36][%csl LRe4,LRg2]} 21. Rhe1 {[%emt 0:03:02]} Bh6 {[%emt 0:07:12]} (21... Qxg2 22. Rxe3 Bxh3 23. Bf1 Rxf1 24. Rxf1 $16) 22. Bf1 {[%emt 0:04:56]} Rb8 {[%emt 0:08:01][%cal Oc5c4] Strongly threatening ...c4!} 23. Kb1 {[%emt 0:04:43]} Bxd2 {[%emt 0:03:06]} 24. Qxd2 {[%emt 0:01:47]} Nxe4 {[%emt 0:00:54]} 25. Qc2 {[%emt 0:00:51] [#]} Bf5 {[%emt 0:02:12]} (25... Rb4 26. a3 Rd4 27. Rxd4 exd4 28. Ka2 $17) (25... Rxf1 $1 $19 {[%mdl 512]} 26. Rxf1 Bf5) 26. Bd3 {[%emt 0:02:59]} (26. Ka1 $17) 26... Nd6 {[%emt 0:01:03]} 27. Bxf5 {[%emt 0:02:12]} Rxf5 {[%emt 0:00:56]} ({Not} 27... Nxf5 28. Re4 Qh5 29. Qe2 $15 (29. Rxe5 Rbe8 $11)) 28. Rc1 {[%emt 0:02:32]} c4 {[%emt 0:01:28]} 29. Qe2 {[%emt 0:02:55]} Qd4 {[%emt 0:02:37][%cal Od6e4]} 30. Red1 {[%emt 0:06:36]} Qb6 {[%emt 0:01:02]} 31. Rd2 {[%emt 0:01:03]} e4 {[%emt 0:02:17]} 32. Ka1 {[%emt 0:03:10]} Qa5 {[%emt 0:02:30]} 33. Nf2 {[%emt 0:07:23][%cal Bh3f2,Bf2g4,Bg4e3][%mdl 32]} Rxd5 {[%emt 0:00:34]} 34. Rxd5 {[%emt 0:03:00]} Qxd5 $40 {[%emt 0:00:01][%mdl 128] Black attacks with force.} 35. Ng4 {[%emt 0:00:32] [#] Nf6+ is the strong threat.} Qd4 {[%emt 0:02:16] Prevents Nf6+.} 36. Ne3 {[%emt 0:01:24]} Kg7 {[%emt 0:05:15]} 37. a3 $2 {[%emt 0:01:18]} (37. Rd1 Qe5 38. Qd2) 37... Rb3 {[%emt 0:06:43][%csl LRa3,LRe3]} 38. Nxc4 {[%emt 0:00:58]} Rd3 {[%emt 0:02:17]} ({Worse is} 38... Nxc4 39. Rxc4 Rxa3+ 40. Kb1 Qd3+ 41. Qxd3 Rxd3 42. Kc2 $15) 39. Nxd6 {[%emt 0:01:05]} cxd6 {[%emt 0:00:47][%mdl 4096] Endgame KQR-KQR} 40. Rc2 {[%emt 0:00:00] Prevents Rd2.} (40. Qf1 Rxa3+ 41. Kb1 Qd3+ 42. Qxd3 Rxd3 43. Rc7+ Kf6 44. Kc2) 40... Rxa3+ {[%emt 0:00:00]} 41. Kb1 {[%emt 0:00:23]} Rd3 {[%emt 0:04:52] White must now prevent ...Rd1+.} 42. Rc7+ {[%emt 0:01:16]} Kh6 {[%emt 0:01:41] ( -> ...Rd2)} 43. Qc2 {[%emt 0:01:02]} (43. Kc1) 43... Rd1+ {[%emt 0:01:44]} 44. Ka2 {[%emt 0:00:01]} Qd5+ {[%emt 0:00:10]} 45. Ka3 {[%emt 0:02:37]} Ra1+ {[%emt 0:03:06] Black mates.} 46. Kb4 {[%emt 0:00:06]} Qa5+ {[%emt 0:00:07]} 47. Kb3 {[%emt 0:00:12]} Qb6+ {[%emt 0:00:03] Weighted Error Value: White=0.70/Black=0.18 (very precise)} 0-1

[Event "Polish Youth 1st League 2022"]
[Site "Lublin"]
[Date "2022.06.27"]
[Round "3.14"]
[White "Bachor, Tomasz"]
[Black "Kozlowski, Franciszek"]
[Result "1-0"]
[ECO "A40"]
[WhiteElo "1971"]
[BlackElo "1607"]
[Annotator "RC"]
[PlyCount "111"]
[EventDate "2022.06.24"]
[EventType "team-tourn"]
[EventCountry "POL"]
[SourceTitle "playchess.com"]
[Source "ChessBase"]
[SourceQuality "1"]
[TimeControl "40/5400+30:1800+30"]

1. d4 {[%emt 0:00:08]} Nf6 {[%emt 0:00:13]} 2. c4 {[%emt 0:00:00]} e6 {[%emt 0:00:50]} 3. g3 d5 {[%emt 0:05:16]} 4. Nf3 {[%emt 0:00:44]} c5 {[%emt 0:01:18]} 5. Bg2 {[%emt 0:08:45]} Nc6 {[%emt 0:07:24]} 6. O-O {[%emt 0:03:53]} cxd4 {[%emt 0:07:24]} 7. Nxd4 {[%emt 0:03:50]} Bc5 {[%emt 0:02:08]} 8. Nb3 {[%emt 0:02:19]} Bb6 {[%emt 0:03:36]} 9. Na3 {[%emt 0:02:13]} a6 {[%emt 0:03:28]} 10. Bg5 {[%emt 0:02:08]} dxc4 {[%emt 0:10:40]} 11. Nxc4 {[%emt 0:06:36]} Qxd1 {[%emt 0:05:11]} 12. Rfxd1 {[%emt 0:00:31]} Bc7 {[%emt 0:02:34]} 13. Bxf6 {[%emt 0:11:17]} gxf6 {[%emt 0:00:13]} 14. Bxc6+ {[%emt 0:00:22]} bxc6 {[%emt 0:00:05]} 15. Rac1 {[%emt 0:00:27]} Bd7 {[%emt 0:10:00]} 16. Nc5 {[%emt 0:05:09]} Bc8 {[%emt 0:00:53]} 17. Na4 {[%emt 0:12:42]} Bb7 {[%emt 0:06:17]} 18. Nc5 {[%emt 0:13:51]} Bc8 {[%emt 0:00:13]} 19. Nb3 {[%emt 0:00:04]} Bd7 {[%emt 0:07:22]} 20. Nca5 {[%emt 0:00:53]} Bxa5 {[%emt 0:02:20]} 21. Nxa5 {[%emt 0:00:06]} Rc8 {[%emt 0:00:11]} 22. Nb7 {[%emt 0:08:20]} Rc7 {[%emt 0:00:59]} 23. Nc5 {[%emt 0:00:45]} Bc8 {[%emt 0:01:05]} 24. Rc3 {[%emt 0:01:10]} Ke7 {[%emt 0:00:46]} 25. Rb3 {[%emt 0:01:33]} Rd8 {[%emt 0:00:52]} 26. Rxd8 {[%emt 0:00:46]} Kxd8 {[%emt 0:00:05]} 27. Rb6 {[%emt 0:00:59]} a5 {[%emt 0:01:31]} 28. Kf1 {[%emt 0:01:05]} Ke7 {[%emt 0:00:29]} 29. Nb3 {[%emt 0:00:35]} a4 {[%emt 0:04:21]} 30. Nc5 {[%emt 0:00:21]} a3 {[%emt 0:04:46]} 31. b4 {[%emt 0:04:53]} Kd6 {[%emt 0:00:25]} 32. Rb8 {[%emt 0:00:32]} Kd5 {[%emt 0:00:32]} 33. Ra8 {[%emt 0:00:26]} Kc4 {[%emt 0:00:26]} 34. Nd3 {[%emt 0:00:27]} e5 {[%emt 0:00:38]} 35. Ra5 {[%emt 0:01:26]} Bf5 {[%emt 0:00:28]} 36. Rc5+ {[%emt 0:00:47]} Kd4 {[%emt 0:00:13]} 37. Nc1 {[%emt 0:00:32]} Be6 {[%emt 0:00:55]} 38. e3+ {[%emt 0:03:49]} Ke4 {[%emt 0:00:07]} 39. b5 {[%emt 0:01:32]} Rd7 {[%emt 0:02:28]} 40. bxc6 {[%emt 0:00:00]} Bh3+ {[%emt 0:00:00]} 41. Ke1 {[%emt 0:02:01]} Rc7 {[%emt 0:04:54]} 42. Ne2 {[%emt 0:02:23]} Bg2 {[%emt 0:01:27]} 43. Nc3+ {[%emt 0:14:42]} Kd3 {[%emt 0:03:34]} 44. Nd5 {[%emt 0:02:37]} Bxd5 {[%emt 0:00:26]} 45. Rxd5+ {[%emt 0:00:02]} Kc2 {[%emt 0:00:41]} 46. Rc5+ {[%emt 0:01:00]} Kb2 {[%emt 0:03:52]} 47. Kd2 {[%emt 0:00:09]} e4 {[%emt 0:00:34]} 48. g4 {[%emt 0:00:30]} h6 {[%emt 0:02:20]} 49. h3 {[%emt 0:00:25]} Kxa2 {[%emt 0:00:33]} 50. Kc2 {[%emt 0:00:31]} f5 {[%emt 0:00:18]} 51. Rc3 {[%emt 0:08:04]} fxg4 {[%emt 0:06:51]} 52. hxg4 {[%emt 0:00:06]} f6 {[%emt 0:03:09]} 53. Kc1 {[%emt 0:01:01]} f5 {[%emt 0:01:06]} 54. gxf5 {[%emt 0:00:05]} h5 {[%emt 0:00:33]} 55. f6 {[%emt 0:00:06]} h4 {[%emt 0:01:04]} 56. f7 {[%emt 0:00:11]} 1-0

[Event "Polish Youth 1st League 2022"]
[Site "Lublin"]
[Date "2022.06.27"]
[Round "3.15"]
[White "Duda, Szymon"]
[Black "Cieslak, Patryk"]
[Result "0-1"]
[ECO "A53"]
[WhiteElo "1707"]
[BlackElo "2019"]
[Annotator "RC"]
[PlyCount "107"]
[EventDate "2022.06.24"]
[EventType "team-tourn"]
[EventCountry "POL"]
[SourceTitle "playchess.com"]
[Source "ChessBase"]
[SourceQuality "1"]
[TimeControl "40/5400+30:1800+30"]

1. d4 {[%emt 0:00:04]} Nf6 {[%emt 0:00:04]} 2. c4 {[%emt 0:00:04]} d6 {[%emt 0:00:04]} 3. Nf3 {[%emt 0:00:07]} g6 {[%emt 0:00:08]} 4. g3 {[%emt 0:00:07]} Bg7 {[%emt 0:00:04]} 5. Bg2 {[%emt 0:00:06]} O-O {[%emt 0:00:03]} 6. O-O {[%emt 0:00:10]} Nc6 {[%emt 0:00:13]} 7. d5 {[%emt 0:00:28]} Na5 {[%emt 0:00:26]} 8. Na3 {[%emt 0:00:16]} c5 {[%emt 0:01:11]} 9. Re1 {[%emt 0:00:22]} Ne4 {[%emt 0:04:25]} 10. Qc2 {[%emt 0:06:56]} Nf6 {[%emt 0:03:08]} 11. e4 {[%emt 0:01:51]} Bg4 {[%emt 0:01:09]} 12. Bd2 {[%emt 0:03:07]} a6 {[%emt 0:04:56]} 13. h3 {[%emt 0:04:57]} Bd7 {[%emt 0:03:31]} 14. e5 {[%emt 0:06:31]} Ne8 {[%emt 0:05:45]} 15. Rad1 {[%emt 0:34:44]} b5 {[%emt 0:05:04]} 16. e6 {[%emt 0:10:56]} fxe6 {[%emt 0:00:23]} 17. dxe6 {[%emt 0:01:54]} Bc6 {[%emt 0:00:17]} 18. Ng5 {[%emt 0:00:49]} b4 {[%emt 0:01:35]} 19. Nb1 {[%emt 0:01:56]} Qc8 {[%emt 0:02:14]} 20. h4 {[%emt 0:06:52]} Bxg2 {[%emt 0:02:01]} 21. Kxg2 {[%emt 0:01:01]} Qb7+ {[%emt 0:03:24]} 22. Kg1 {[%emt 0:00:52]} Nc6 {[%emt 0:01:27]} 23. Qe4 {[%emt 0:02:52]} Nf6 {[%emt 0:00:43]} 24. Qg2 {[%emt 0:00:39]} Ng4 {[%emt 0:01:33]} 25. Nf7 {[%emt 0:03:08]} Qc8 {[%emt 0:01:09]} 26. h5 {[%emt 0:03:11]} Nce5 {[%emt 0:01:37]} 27. hxg6 {[%emt 0:02:24]} hxg6 {[%emt 0:01:13]} 28. Qh3 {[%emt 0:04:58]} Nxf7 {[%emt 0:00:55]} 29. exf7+ {[%emt 0:00:26]} Rxf7 {[%emt 0:00:08]} 30. Re2 {[%emt 0:00:59]} Bxb2 {[%emt 0:02:26]} 31. Rde1 {[%emt 0:02:33]} Ne5 {[%emt 0:01:08]} 32. Qxc8+ {[%emt 0:00:33]} Rxc8 {[%emt 0:00:02]} 33. Kg2 {[%emt 0:00:23]} Nxc4 {[%emt 0:00:42]} 34. Rxe7 {[%emt 0:00:30]} Nxd2 {[%emt 0:00:11]} 35. Nxd2 {[%emt 0:00:13]} Bc3 {[%emt 0:00:21]} 36. Re8+ {[%emt 0:00:15]} Rf8 {[%emt 0:00:08]} 37. Rxf8+ {[%emt 0:00:21]} Rxf8 {[%emt 0:00:25]} 38. Rd1 {[%emt 0:00:42]} Bxd2 {[%emt 0:00:26]} 39. Rxd2 {[%emt 0:00:02]} Rd8 {[%emt 0:00:27]} 40. Kf3 {[%emt 0:00:00]} Kf7 {[%emt 0:00:00]} 41. Kf4 {[%emt 0:00:25]} Kf6 {[%emt 0:00:30]} 42. g4 {[%emt 0:00:13]} g5+ {[%emt 0:01:23]} 43. Kg3 {[%emt 0:00:15]} d5 {[%emt 0:00:29]} 44. f4 {[%emt 0:00:05]} c4 {[%emt 0:00:15]} 45. Rh2 {[%emt 0:00:18]} d4 {[%emt 0:00:20]} 46. fxg5+ {[%emt 0:00:33]} Kg7 {[%emt 0:00:02]} 47. Kf4 {[%emt 0:00:18]} d3 {[%emt 0:00:05]} 48. Ke3 {[%emt 0:00:13]} c3 {[%emt 0:00:04]} 49. Rh1 {[%emt 0:00:15]} d2 {[%emt 0:00:03]} 50. Ke2 {[%emt 0:00:06]} c2 {[%emt 0:00:06]} 51. Rd1 {[%emt 0:00:05]} Kg8 {[%emt 0:00:45]} 52. Rxd2 {[%emt 0:00:13]} Re8+ {[%emt 0:00:04]} 53. Kd3 {[%emt 0:00:10]} c1=Q {[%emt 0:00:05]} 54. Kd4 0-1